bitfinex/quotes_BTCUSD_20260101
["timestamp","ask_amount","ask_price","bid_price","bid_amount"]
[1767267775481,0.01068059,87951.0,87941.0,0.04828399]
[1767267775679,0.01068059,87950.0,87941.0,0.04828399]
[1767267775859,0.01068059,87949.0,87941.0,0.04828399]
[1767267776055,0.03073622,87955.0,87941.0,0.04828399]
[1767267776263,0.01068059,87954.0,87941.0,0.04828399]
[1767267776488,0.01068059,87953.0,87941.0,0.04828399]
[1767267776686,0.01068059,87952.0,87941.0,0.05965525]
[1767267777019,0.01068059,87951.0,87941.0,0.04828399]
[1767267777165,0.01068059,87950.0,87941.0,0.04828399]
[1767267777367,0.01068059,87949.0,87941.0,0.04828399]
[1767267777683,0.07695119,87955.0,87941.0,0.04828399]
[1767267778019,0.03528868,87954.0,87941.0,0.04828399]
[1767267778181,0.01068056,87953.0,87941.0,0.04828399]
[1767267778365,0.01068056,87952.0,87941.0,0.04828399]
[1767267778565,0.01068056,87951.0,87941.0,0.05965525]
[1767267778769,0.01068056,87950.0,87941.0,0.05965525]
[1767267778990,0.01068056,87949.0,87941.0,0.05965525]
[1767267779191,0.02460812,87954.0,87941.0,0.04828399]
[1767267779497,0.01068056,87953.0,87941.0,0.04828399]
[1767267779698,0.01068056,87952.0,87941.0,0.04828399]
[1767267780044,0.01068056,87951.0,87941.0,0.04828399]
[1767267780258,0.01068056,87950.0,87941.0,0.04828399]
[1767267780388,0.01068056,87949.0,87941.0,0.04828399]
[1767267780588,0.02460812,87954.0,87941.0,0.05965525]
[1767267780788,0.01068056,87953.0,87941.0,0.05965525]
[1767267781061,0.01068056,87952.0,87941.0,0.05965525]
[1767267781198,0.01068056,87951.0,87941.0,0.05965525]
[1767267781401,0.01068056,87950.0,87940.0,0.52437342]
[1767267781614,0.01068056,87949.0,87940.0,0.52437342]
[1767267781817,0.02460812,87954.0,87940.0,0.52437342]
[1767267782065,0.01068055,87953.0,87940.0,0.52437342]
[1767267782272,0.02460812,87954.0,87940.0,0.52437342]
[1767267782273,0.01068055,87952.0,87940.0,0.52437342]
[1767267782431,0.01068055,87951.0,87940.0,0.52437342]
[1767267782648,0.01068055,87950.0,87940.0,0.01137162]
[1767267782854,0.01068055,87949.0,87940.0,0.52437342]
[1767267783070,0.02460812,87954.0,87940.0,0.52437342]
[1767267783273,0.01068056,87953.0,87940.0,0.52437342]
[1767267783472,0.01068056,87952.0,87941.0,0.01137126]
[1767267783674,0.01068056,87951.0,87940.0,0.51300204]
[1767267783877,0.01068056,87950.0,87940.0,0.52437342]
[1767267784144,0.01068056,87949.0,87940.0,0.52437342]
[1767267784458,0.02460812,87954.0,87940.0,0.52437342]
[1767267784660,0.01068056,87953.0,87940.0,0.52437342]
[1767267784902,0.01068056,87952.0,87940.0,0.52437342]
[1767267785059,0.01068056,87951.0,87940.0,0.52437342]
[1767267785277,0.01068056,87950.0,87940.0,0.52437342]
[1767267785485,0.01068056,87949.0,87940.0,0.52437342]
[1767267785782,0.07082309,87954.0,87940.0,2.4e-07]
[1767267785972,0.03528868,87953.0,87940.0,2.4e-07]
[1767267786174,0.01068056,87952.0,87939.0,0.53571669]
[1767267786407,0.01068056,87951.0,87939.0,0.01134338]
[1767267786611,0.01068056,87950.0,87940.0,0.5130018]
[1767267786793,0.01068056,87949.0,87940.0,0.5130018]
[1767267787120,0.02460812,87953.0,87940.0,0.5130018]
[1767267787325,0.01068058,87952.0,87940.0,0.5130018]
[1767267787625,0.01068058,87951.0,87940.0,0.5130018]
[1767267787844,0.01068058,87950.0,87940.0,0.5130018]
[1767267788045,0.01068058,87949.0,87940.0,0.5130018]
[1767267788223,0.02460812,87953.0,87940.0,0.5130018]
[1767267788448,0.01068065,87952.0,87940.0,0.5130018]
[1767267788634,0.01068065,87951.0,87940.0,0.5130018]
[1767267788829,0.01068065,87950.0,87940.0,0.5130018]
[1767267788995,0.01068065,87949.0,87940.0,0.5130018]
[1767267789195,0.02460812,87953.0,87940.0,0.5130018]
[1767267789399,0.01068066,87952.0,87940.0,0.5130018]
[1767267789731,0.01068066,87951.0,87940.0,0.5130018]
[1767267789931,0.02460812,87953.0,87939.0,0.01134338]
[1767267789932,0.01068066,87950.0,87939.0,0.01134338]
[1767267790134,0.01068066,87949.0,87939.0,0.01134338]
[1767267790360,0.07082309,87953.0,87939.0,0.01134338]
[1767267790559,0.03528879,87952.0,87939.0,0.01134338]
[1767267790742,0.01068067,87951.0,87939.0,0.01134338]
[1767267790944,0.01068067,87950.0,87939.0,0.01134338]
[1767267791265,0.01068067,87949.0,87939.0,0.01134338]
[1767267791483,0.02460812,87952.0,87939.0,0.01134338]
[1767267791615,0.01068067,87951.0,87939.0,0.01134338]
[1767267791815,0.01068067,87950.0,87939.0,0.01134338]
[1767267792018,0.01068067,87949.0,87939.0,0.01134338]
[1767267792235,0.02460812,87952.0,87939.0,0.01134338]
[1767267792463,0.01068066,87951.0,87939.0,0.01134338]
[1767267792786,0.01068066,87950.0,87939.0,0.01134338]
[1767267792960,0.01068066,87949.0,87939.0,0.01134338]
[1767267793171,0.02460812,87952.0,87939.0,0.52434518]
[1767267793373,0.01068067,87951.0,87939.0,0.52434518]
[1767267793578,0.01068067,87950.0,87940.0,0.5130018]
[1767267793790,0.01068067,87949.0,87939.0,0.01134338]
[1767267793940,0.02460812,87949.0,87939.0,0.01134338]
[1767267794153,0.04621497,87952.0,87939.0,0.01134338]
[1767267794154,0.02460812,87948.0,87939.0,0.01047349]
[1767267794339,0.02460812,87947.0,87939.0,0.01047349]
[1767267794542,0.02460812,87946.0,87939.0,0.01047349]
[1767267794733,0.04621497,87952.0,87939.0,0.01047349]
[1767267795000,0.03528896,87951.0,87939.0,0.01047349]
[1767267795193,0.01068067,87950.0,87939.0,0.01047349]
[1767267795392,0.01068067,87949.0,87939.0,0.01047349]
[1767267795697,0.5130018,87950.0,87939.0,0.01047349]
[1767267795860,0.03528896,87949.0,87939.0,0.01047349]
[1767267796059,0.02460829,87949.0,87939.0,0.01047349]
[1767267806409,0.02460829,87949.0,87939.0,0.01054164]
[1767267809527,0.02460829,87948.0,87939.0,0.01054164]
[1767267809841,0.02460829,87947.0,87939.0,0.01054164]
[1767267810005,0.02460829,87946.0,87939.0,0.01054164]
[1767267810170,0.5130018,87950.0,87939.0,0.01054164]
[1767267810370,0.0352887,87949.0,87939.0,0.01054164]
[1767267810615,0.02460809,87949.0,87939.0,0.01054164]
[1767267813821,0.01068069,87948.0,87939.0,0.01054164]
[1767267814023,0.02460809,87949.0,87939.0,0.01054164]
[1767267814331,0.01068051,87948.0,87939.0,0.01054164]
[1767267814543,0.02460809,87949.0,87939.0,0.01054164]
[1767267814741,0.01068051,87948.0,87939.0,0.01054164]
[1767267814975,0.02460809,87949.0,87939.0,0.01054164]
[1767267815192,0.01068051,87948.0,87939.0,0.01054164]
[1767267815394,0.02460809,87949.0,87939.0,0.01054164]
[1767267815644,0.01068041,87948.0,87939.0,0.01054164]
[1767267815859,0.02460809,87949.0,87939.0,0.01054164]
[1767267816087,0.01068041,87948.0,87939.0,0.01054164]
[1767267816313,0.02460809,87949.0,87939.0,0.01054164]
[1767267816525,0.01068033,87948.0,87939.0,0.01054164]
[1767267816742,0.02460809,87949.0,87939.0,0.01054164]
[1767267816936,0.01068033,87948.0,87939.0,0.01054164]
[1767267817135,0.02460809,87949.0,87939.0,0.01054164]
[1767267817338,0.01068026,87948.0,87939.0,0.01054164]
[1767267817649,0.02460809,87949.0,87939.0,0.01054164]
[1767267817850,0.01068026,87948.0,87939.0,0.01054164]
[1767267818012,0.02460809,87949.0,87939.0,0.01054164]
[1767267818197,0.01068021,87948.0,87939.0,0.01054164]
[1767267818400,0.02460809,87949.0,87939.0,0.01054164]
[1767267818594,0.01068021,87948.0,87939.0,0.01054164]
[1767267818956,0.02460809,87949.0,87939.0,0.01054164]
[1767267819108,0.01068021,87948.0,87939.0,0.01054164]
[1767267819313,0.02460809,87949.0,87939.0,0.01054164]
[1767267819528,0.01068018,87948.0,87939.0,0.01054164]
[1767267819758,0.02460809,87949.0,87939.0,0.01054164]
[1767267819930,0.01068018,87948.0,87939.0,0.01054164]
[1767267820129,0.02460809,87949.0,87939.0,0.01054164]
[1767267820478,0.01068014,87948.0,87939.0,0.01054164]
[1767267820681,0.02460809,87949.0,87939.0,0.01054164]
[1767267820877,0.01068014,87948.0,87939.0,0.01054164]
[1767267821036,0.02460809,87949.0,87939.0,0.01054164]
[1767267821241,0.01068012,87948.0,87939.0,0.01054164]
[1767267821468,0.02460809,87949.0,87939.0,0.01054164]
[1767267821781,0.01068011,87948.0,87939.0,0.01054164]
[1767267821993,0.02460809,87949.0,87939.0,0.01054164]
[1767267822154,0.01068011,87948.0,87939.0,0.01054164]
[1767267822353,0.02460809,87949.0,87939.0,0.01054164]
[1767267822576,0.01068011,87948.0,87939.0,0.01054164]
[1767267822781,0.02460809,87949.0,87939.0,0.01054164]
[1767267823143,0.01068011,87948.0,87939.0,0.01054164]
[1767267823332,0.02460809,87949.0,87939.0,0.01054164]
[1767267823532,0.01068009,87948.0,87939.0,0.01054164]
[1767267823774,0.02460809,87949.0,87939.0,0.01054164]
[1767267823948,0.01068008,87948.0,87939.0,0.01054164]
[1767267824190,0.02460809,87949.0,87939.0,0.01054164]
[1767267824403,0.01068008,87948.0,87939.0,0.01054164]
[1767267824620,0.02460809,87949.0,87939.0,0.01054164]
[1767267824831,0.01068009,87948.0,87939.0,0.01054164]
[1767267824960,0.02460809,87949.0,87939.0,0.01054164]
[1767267825179,0.01068008,87948.0,87939.0,0.01054164]
[1767267825380,0.02460809,87949.0,87939.0,0.01054164]
[1767267825586,0.01068009,87948.0,87939.0,0.01054164]
[1767267825916,0.02460809,87949.0,87939.0,0.01054164]
[1767267826135,0.0106801,87948.0,87939.0,0.01054164]
[1767267826301,0.02460809,87949.0,87939.0,0.01054164]
[1767267826507,0.01068009,87948.0,87939.0,0.01054164]
[1767267826709,0.02460809,87949.0,87939.0,0.01054164]
[1767267826956,0.01068009,87948.0,87939.0,0.01054164]
[1767267827151,0.02460809,87949.0,87939.0,0.01054164]
[1767267827345,0.01068009,87948.0,87939.0,0.01054164]
[1767267827643,0.02460809,87949.0,87939.0,0.01054164]
[1767267827848,0.01068009,87948.0,87939.0,0.01054164]
[1767267828051,0.02460809,87949.0,87939.0,0.01054164]
[1767267828191,0.01068009,87948.0,87939.0,0.01054164]
[1767267828403,0.02460809,87949.0,87939.0,0.01054164]
[1767267828602,0.01068009,87948.0,87939.0,0.01054164]
[1767267828807,0.02460809,87949.0,87939.0,0.01054164]
[1767267829100,0.01068009,87948.0,87939.0,0.01054164]
[1767267829404,0.02460809,87949.0,87939.0,0.01054164]
[1767267829637,0.0106801,87948.0,87939.0,0.01054164]
[1767267829834,0.02460809,87949.0,87939.0,0.01054164]
[1767267830045,0.0106801,87948.0,87939.0,0.01054164]
[1767267830242,0.02460809,87949.0,87939.0,0.01054164]
[1767267830525,0.0106801,87948.0,87939.0,0.01054164]
[1767267830736,0.02460809,87949.0,87939.0,0.01054164]
[1767267830935,0.0106801,87948.0,87939.0,0.01054164]
[1767267831176,0.02460809,87949.0,87939.0,0.01054164]
[1767267831406,0.01068011,87948.0,87939.0,0.01054164]
[1767267831692,0.02460809,87949.0,87939.0,0.01054164]
[1767267831907,0.01068011,87948.0,87939.0,0.01048494]
[1767267832104,0.02460809,87949.0,87939.0,0.01048494]
[1767267832304,0.01068013,87948.0,87939.0,0.01048494]
[1767267832458,0.02460809,87949.0,87939.0,0.01048494]
[1767267832659,0.01068013,87948.0,87939.0,0.01048494]
[1767267832991,0.02460809,87949.0,87939.0,0.01048494]
[1767267833224,0.01068015,87948.0,87939.0,0.01048494]
[1767267833374,0.02460809,87949.0,87939.0,0.01048494]
[1767267833574,0.01068015,87948.0,87939.0,0.01048494]
[1767267833773,0.02460809,87949.0,87939.0,0.01048494]
[1767267834011,0.01068015,87948.0,87939.0,0.01048494]
[1767267834345,0.02460809,87949.0,87939.0,0.01048494]
[1767267834554,0.01068018,87948.0,87939.0,0.01048494]
[1767267834755,0.02460809,87949.0,87939.0,0.01048494]
[1767267834955,0.01068018,87948.0,87939.0,0.01048494]
[1767267835232,0.02460809,87949.0,87939.0,0.01048494]
[1767267835565,0.01068021,87948.0,87939.0,0.01048494]
[1767267835799,0.02460809,87949.0,87939.0,0.01048494]
[1767267835999,0.01068021,87948.0,87939.0,0.01048494]
[1767267836205,0.02460809,87949.0,87939.0,0.01048494]
[1767267836361,0.01068024,87948.0,87939.0,0.01048494]
[1767267836574,0.02460809,87949.0,87939.0,0.01048494]
[1767267836797,0.03528833,87948.0,87939.0,0.01048494]
[1767267837116,0.02460809,87947.0,87939.0,0.01048494]
[1767267837321,0.02460809,87946.0,87939.0,0.01048494]
[1767267837522,0.02460809,87945.0,87939.0,0.01048494]
[1767267837730,0.04621497,87952.0,87939.0,0.01048494]
[1767267837854,0.03528762,87951.0,87939.0,0.01048494]
[1767267838055,0.01068027,87950.0,87939.0,0.01048494]
[1767267838273,0.01068027,87949.0,87939.0,0.01048494]
[1767267838519,0.01068027,87948.0,87939.0,0.01048494]
[1767267838732,0.02460735,87951.0,87939.0,0.01048494]
[1767267838930,0.01068032,87950.0,87939.0,0.01048494]
[1767267839156,0.01068032,87949.0,87939.0,0.01048494]
[1767267839325,0.01068032,87948.0,87939.0,0.01048494]
[1767267839534,0.02460735,87951.0,87939.0,0.01048494]
[1767267839717,0.01068037,87950.0,87939.0,0.01048494]
[1767267839916,0.01068037,87949.0,87939.0,0.01048494]
[1767267840117,0.01068037,87948.0,87939.0,0.01048494]
[1767267840344,0.02460735,87951.0,87939.0,0.01048494]
[1767267840563,0.01068042,87950.0,87939.0,0.01048494]
[1767267840773,0.01068042,87949.0,87939.0,0.01048494]
[1767267840977,0.01068042,87948.0,87939.0,0.01048494]
[1767267841187,0.02460735,87951.0,87939.0,0.01048494]
[1767267841376,0.01068049,87950.0,87939.0,0.01048494]
[1767267841580,0.02460735,87951.0,87939.0,0.01048494]
[1767267841581,0.01068049,87949.0,87939.0,0.01048494]
[1767267841738,0.01068049,87948.0,87939.0,0.01048494]
[1767267841942,0.02460735,87951.0,87939.0,0.01048494]
[1767267842175,0.0106805,87950.0,87939.0,0.01048494]
[1767267842374,0.0106805,87949.0,87939.0,0.01048494]
[1767267842580,0.0106805,87948.0,87939.0,0.01048494]
[1767267842782,0.02460735,87951.0,87939.0,0.01048494]
[1767267842982,0.01068061,87950.0,87939.0,0.01048494]
[1767267843180,0.01068061,87949.0,87939.0,0.01048494]
[1767267843408,0.01068061,87948.0,87939.0,0.01048494]
[1767267843607,0.02460735,87951.0,87939.0,0.01048494]
[1767267843773,0.01068082,87950.0,87939.0,0.01048494]
[1767267843980,0.01068082,87949.0,87939.0,0.01048494]
[1767267844184,0.01068082,87948.0,87939.0,0.01048494]
[1767267844410,0.02460735,87951.0,87939.0,0.01048494]
[1767267844611,0.01068082,87950.0,87939.0,0.01048494]
[1767267844784,0.01068082,87949.0,87939.0,0.01048494]
[1767267844979,0.02460735,87951.0,87939.0,0.01048494]
[1767267844980,0.01068082,87948.0,87939.0,0.01048494]
[1767267845178,0.02460735,87951.0,87939.0,0.01048494]
[1767267845410,0.01068081,87950.0,87939.0,0.01048494]
[1767267845583,0.01068081,87949.0,87939.0,0.01048494]
[1767267845914,0.01068081,87948.0,87939.0,0.01048494]
[1767267846103,0.02460735,87951.0,87939.0,0.01048494]
[1767267846269,0.01068081,87950.0,87939.0,0.01048494]
[1767267846464,0.01068081,87949.0,87939.0,0.01048494]
[1767267846659,0.01068081,87948.0,87939.0,0.01048494]
[1767267846917,0.02460735,87951.0,87939.0,0.01048494]
[1767267847121,0.01068081,87950.0,87939.0,0.01048494]
[1767267847355,0.01068081,87949.0,87939.0,0.01048494]
[1767267847560,0.01068081,87948.0,87939.0,0.01048494]
[1767267847795,0.02460735,87951.0,87939.0,0.01048494]
[1767267847997,0.01068081,87950.0,87939.0,0.01048494]
[1767267848206,0.01068081,87949.0,87939.0,0.01048494]
[1767267848413,0.01068081,87948.0,87939.0,0.01048494]
[1767267848646,0.02460735,87951.0,87939.0,0.01048494]
[1767267848884,0.01068081,87950.0,87939.0,0.01048494]
[1767267849083,0.01068081,87949.0,87939.0,0.01048494]
[1767267849294,0.01068081,87948.0,87939.0,0.01048494]
[1767267849491,0.02460735,87951.0,87939.0,0.01048494]
[1767267849709,0.01068082,87950.0,87939.0,0.01048494]
[1767267849881,0.01068082,87949.0,87939.0,0.01048494]
[1767267850091,0.01068082,87948.0,87939.0,0.01048494]
[1767267850293,0.02460735,87951.0,87939.0,0.01048494]
[1767267850492,0.01068081,87950.0,87939.0,0.01048494]
[1767267850718,0.01068081,87949.0,87939.0,0.01048494]
[1767267850932,0.01068081,87948.0,87939.0,0.01048494]
[1767267851129,0.02460735,87951.0,87939.0,0.01048494]
[1767267851308,0.01068081,87950.0,87939.0,0.01048494]
[1767267851489,0.01068081,87949.0,87939.0,0.01048494]
[1767267851696,0.01068081,87948.0,87939.0,0.01048494]
[1767267851918,0.02460735,87951.0,87939.0,0.01048494]
[1767267852116,0.01068082,87950.0,87939.0,0.01048494]
[1767267852337,0.01068082,87949.0,87939.0,0.01048494]
[1767267852638,0.01068082,87948.0,87939.0,0.01048494]
[1767267852797,0.02460735,87951.0,87939.0,0.01048494]
[1767267852983,0.01068082,87950.0,87939.0,0.01048494]
[1767267853183,0.01068082,87949.0,87939.0,0.01048494]
[1767267853380,0.01068082,87948.0,87939.0,0.01048494]
[1767267853611,0.02460735,87951.0,87939.0,0.01048494]
[1767267853904,0.01068082,87950.0,87939.0,0.01048494]
[1767267854104,0.01068082,87949.0,87939.0,0.01048494]
[1767267854306,0.01068082,87948.0,87939.0,0.01048494]
[1767267854507,0.02460735,87951.0,87939.0,0.01048494]
[1767267854738,0.01068083,87950.0,87939.0,0.01048494]
[1767267854933,0.01068083,87949.0,87939.0,0.01048494]
[1767267855269,0.01068083,87948.0,87939.0,0.01048494]
[1767267855433,0.02460735,87951.0,87939.0,0.01048494]
[1767267855633,0.01068084,87950.0,87939.0,0.01048494]
[1767267855835,0.01068084,87949.0,87939.0,0.01048494]
[1767267856194,0.01068084,87948.0,87939.0,0.01048494]
[1767267856330,0.02460735,87951.0,87939.0,0.01048494]
[1767267856331,0.02460735,87951.0,87939.0,0.0593969]
[1767267856532,0.03528819,87950.0,87939.0,0.0593969]
[1767267856733,0.03528819,87949.0,87939.0,0.0593969]
[1767267856934,0.03528819,87948.0,87939.0,0.0593969]
[1767267857136,0.02460735,87947.0,87939.0,0.0593969]
[1767267857355,0.02460735,87946.0,87939.0,0.0593969]
[1767267857550,0.02460735,87945.0,87939.0,0.0593969]
[1767267857755,0.03073622,87954.0,87945.0,6.4e-05]
[1767267857953,0.01068083,87953.0,87939.0,0.0593969]
[1767267858153,0.01068083,87952.0,87939.0,0.0593969]
[1767267858355,0.01068076,87951.0,87940.0,0.06028334]
[1767267858578,0.01068076,87950.0,87941.0,0.01137126]
[1767267858793,0.01068076,87949.0,87941.0,0.01137126]
[1767267858949,0.02460866,87951.0,87941.0,0.01137126]
[1767267859144,0.03528942,87950.0,87941.0,0.01137126]
[1767267859353,0.03528942,87949.0,87941.0,0.01137126]
[1767267859594,0.02460866,87948.0,87941.0,0.01137126]
[1767267859796,0.03073622,87955.0,87948.0,6.4e-05]
[1767267859998,0.00888151,87954.0,87941.0,0.01137126]
[1767267860305,0.03073622,87955.0,87942.0,0.06028309]
[1767267860454,0.03073622,87955.0,87942.0,0.04891196]
[1767267861407,0.03073622,87955.0,87942.0,0.06028309]
[1767267862316,0.03073622,87955.0,87942.0,0.04891196]
[1767267862510,0.03073622,87955.0,87942.0,0.06028309]
[1767267863291,0.03073622,87955.0,87942.0,0.04891196]
[1767267864534,0.03073622,87955.0,87942.0,0.06028309]
[1767267864769,0.03073622,87955.0,87942.0,0.04891196]
[1767267865662,0.03073622,87955.0,87942.0,0.06028309]
[1767267866721,0.03073622,87955.0,87944.0,0.04959095]
[1767267867980,0.03073622,87955.0,87944.0,0.06096182]
[1767267868616,0.03073622,87955.0,87944.0,0.04959095]
[1767267869403,0.05534408,87955.0,87944.0,0.04959095]
[1767267869607,0.02460786,87954.0,87944.0,0.04959095]
[1767267869861,0.02460786,87953.0,87944.0,0.06096182]
[1767267870096,0.03073622,87955.0,87944.0,0.06096182]
[1767267870097,0.02460786,87952.0,87944.0,0.06096182]
[1767267870304,0.02460786,87951.0,87944.0,0.06096182]
[1767267870482,0.02460786,87950.0,87944.0,0.06096182]
[1767267870692,0.02460786,87949.0,87944.0,0.06096182]
[1767267870894,0.02460786,87948.0,87944.0,0.04959095]
[1767267871108,0.02460786,87947.0,87944.0,0.04959095]
[1767267871318,0.03073622,87955.0,87944.0,0.04959095]
[1767267871531,0.02460549,87954.0,87947.0,0.01137048]
[1767267871736,0.02460549,87953.0,87951.0,0.04959095]
[1767267871941,0.02460549,87952.0,87951.0,0.04959095]
[1767267872151,0.0001259,87957.0,87951.0,0.04959095]
[1767267872322,0.01067888,87956.0,87951.0,0.01136996]
[1767267872543,0.01067888,87955.0,87951.0,0.01136996]
[1767267872868,0.0001259,87957.0,87951.0,0.01136996]
[1767267873043,0.01067682,87956.0,87951.0,0.01136996]
[1767267873202,0.01067682,87955.0,87950.0,0.04959095]
[1767267873412,0.0001259,87957.0,87950.0,0.04959095]
[1767267873413,0.0001259,87957.0,87950.0,0.06096104]
[1767267873694,0.01067533,87956.0,87950.0,0.04959095]
[1767267873829,0.01067533,87955.0,87950.0,0.04959095]
[1767267874031,0.0001259,87957.0,87950.0,0.04959095]
[1767267874281,0.01067533,87956.0,87950.0,0.04959095]
[1767267874475,0.0001259,87957.0,87950.0,0.04959095]
[1767267874685,0.01067431,87956.0,87950.0,0.04959095]
[1767267874882,0.01067431,87955.0,87950.0,0.04959095]
[1767267875086,0.0001259,87957.0,87950.0,0.04959095]
[1767267875429,0.01067431,87956.0,87950.0,0.04959095]
[1767267875609,0.0001259,87957.0,87950.0,0.04959095]
[1767267875814,0.01067351,87956.0,87950.0,0.04959095]
[1767267876018,0.0001259,87957.0,87950.0,0.04959095]
[1767267876155,0.01067351,87956.0,87950.0,0.04959095]
[1767267876359,0.0001259,87957.0,87950.0,0.06096104]
[1767267876607,0.01067286,87956.0,87950.0,0.06096104]
[1767267876810,0.0001259,87957.0,87950.0,0.06096104]
[1767267877020,0.01067286,87956.0,87950.0,0.06096104]
[1767267877349,0.0001259,87957.0,87950.0,0.06096104]
[1767267877541,0.01067221,87956.0,87950.0,0.06096104]
[1767267877741,0.0001259,87957.0,87950.0,0.04959095]
[1767267877970,0.01067221,87956.0,87950.0,0.04959095]
[1767267878151,0.0001259,87957.0,87950.0,0.04959095]
[1767267878710,0.0001259,87957.0,87950.0,0.06096104]
[1767267880334,0.0001259,87957.0,87950.0,0.04959095]
[1767267880549,0.0001259,87957.0,87950.0,0.06096104]
[1767267881644,0.0001259,87957.0,87950.0,0.04959095]
[1767267887157,0.0001259,87957.0,87949.0,0.01137022]
[1767267889048,0.0001259,87957.0,87950.0,0.01137009]
[1767267889646,0.0001259,87957.0,87949.0,0.01137022]
[1767267890213,0.0001259,87957.0,87950.0,0.01137009]
[1767267890344,0.0001259,87957.0,87949.0,0.01137022]
[1767267890540,0.0001259,87957.0,87950.0,0.01137009]
[1767267892811,0.0001259,87957.0,87951.0,0.06096091]
[1767267893031,0.0001259,87957.0,87953.0,0.04959095]
[1767267893436,0.0001259,87957.0,87953.0,0.06096065]
[1767267893633,0.0001259,87957.0,87954.0,0.01136957]
[1767267893873,0.0001259,87957.0,87953.0,0.06096065]
[1767267894076,0.0001259,87957.0,87954.0,0.01136957]
[1767267894842,0.0001259,87957.0,87953.0,0.06096065]
[1767267896858,0.0001259,87957.0,87953.0,0.04959095]
[1767267898068,0.0001259,87957.0,87953.0,0.04904195]
[1767267898767,0.0001259,87957.0,87950.0,0.01137009]
[1767267899123,0.0001259,87957.0,87951.0,0.01136996]
[1767267899637,0.0001259,87957.0,87950.0,0.01137009]
[1767267900285,0.0001259,87957.0,87952.0,0.05958059]
[1767267900510,0.0001259,87957.0,87953.0,0.05958046]
[1767267901184,0.0001259,87957.0,87953.0,0.04821076]
[1767267901389,0.0001259,87957.0,87953.0,0.05958046]
[1767267901607,0.0001259,87957.0,87953.0,0.04821076]
[1767267901829,0.0001259,87957.0,87953.0,0.05958046]
[1767267902717,0.0001259,87957.0,87953.0,0.04821076]
[1767267902912,0.0001259,87957.0,87953.0,0.05958046]
[1767267903914,0.0001259,87957.0,87953.0,0.04821076]
[1767267904322,0.0001259,87957.0,87953.0,0.05958046]
[1767267905304,0.0001259,87957.0,87954.0,0.01136957]
[1767267905516,9e-07,87957.0,87953.0,0.05958046]
[1767267906613,9e-07,87957.0,87954.0,0.01136957]
[1767267907493,9e-07,87957.0,87953.0,0.0113697]
[1767267908052,9e-07,87957.0,87954.0,0.01136957]
[1767267908432,9e-07,87957.0,87953.0,0.0113697]
[1767267908629,9e-07,87957.0,87954.0,0.01136957]
[1767267908832,9e-07,87957.0,87953.0,0.0113697]
[1767267909831,9e-07,87957.0,87954.0,0.01136957]
[1767267910301,9e-07,87957.0,87953.0,0.0113697]
[1767267912532,9e-07,87957.0,87952.0,0.01136983]
[1767267912950,9e-07,87957.0,87953.0,0.0113697]
[1767267914508,9e-07,87957.0,87952.0,0.01136983]
[1767267915255,9e-07,87957.0,87953.0,0.0113697]
[1767267916009,9e-07,87957.0,87952.0,0.01136983]
[1767267916208,9e-07,87957.0,87953.0,0.0113697]
[1767267918149,9e-07,87957.0,87952.0,0.01136983]
[1767267920172,9e-07,87957.0,87951.0,0.01136996]
[1767267920593,9e-07,87957.0,87952.0,0.01136983]
[1767267920790,9e-07,87957.0,87951.0,0.01136996]
[1767267920968,9e-07,87957.0,87952.0,0.01136983]
[1767267921174,9e-07,87957.0,87952.0,0.05958059]
[1767267921609,9e-07,87957.0,87954.0,0.04938778]
[1767267921828,9e-07,87957.0,87955.0,0.06078778]
[1767267923213,9e-07,87957.0,87955.0,0.0114]
[1767267923925,9e-07,87957.0,87955.0,0.05734254]
[1767267924259,9e-07,87957.0,87955.0,0.11418948]
[1767267924592,9e-07,87957.0,87955.0,0.05734254]
[1767267931500,9e-07,87957.0,87955.0,0.011275]
[1767267939907,9e-07,87957.0,87955.0,0.03587866]
[1767267941994,9e-07,87957.0,87955.0,0.06812172]
[1767267942188,9e-07,87957.0,87956.0,0.02460366]
[1767267944073,9e-07,87957.0,87956.0,0.0705462]
[1767267944709,0.0001463,87966.0,87963.0,0.01136841]
[1767267944909,0.0001463,87966.0,87964.0,0.0114]
[1767267945085,0.0001463,87966.0,87964.0,0.01085]
[1767267946005,3e-07,87966.0,87964.0,0.06769133]
[1767267946410,0.02473136,87974.0,87969.0,0.01136764]
[1767267946755,0.01066902,87973.0,87969.0,0.01136764]
[1767267946922,0.02473136,87974.0,87969.0,0.01136764]
[1767267947132,0.0001463,87974.0,87969.0,0.01136764]
[1767267947557,0.0001463,87974.0,87969.0,0.01143579]
[1767267948379,0.0001463,87974.0,87969.0,6.815e-05]
[1767267948705,0.0001463,87974.0,87970.0,0.01136751]
[1767267948836,0.0001463,87974.0,87971.0,0.0114]
[1767267950734,0.0001463,87974.0,87971.0,0.02276738]
[1767267955786,0.0001463,87974.0,87971.0,0.0114]
[1767267955993,0.0001463,87974.0,87971.0,0.011254]
[1767267961535,0.0001463,87974.0,87971.0,0.02262138]
[1767267961762,0.0001463,87974.0,87971.0,0.011254]
[1767267968204,3e-07,87974.0,87971.0,0.011254]
[1767267970234,3e-07,87974.0,87971.0,0.02262138]
[1767267970657,3e-07,87974.0,87971.0,0.011254]
[1767267970861,3e-07,87974.0,87971.0,0.02262138]
[1767267971099,3e-07,87974.0,87971.0,0.011254]
[1767267975198,3e-07,87974.0,87971.0,0.006254]
[1767267979617,3e-07,87974.0,87971.0,0.01762138]
[1767267979822,3e-07,87974.0,87971.0,0.006254]
[1767267980162,3e-07,87974.0,87972.0,0.0114]
[1767267980366,3e-07,87974.0,87972.0,0.01133432]
[1767267992290,3e-07,87974.0,87972.0,0.00279288]
[1767268012594,3e-07,87974.0,87973.0,0.05683562]
[1767268016324,0.02458999,87982.0,87979.0,0.06819807]
[1767268016523,0.04799342,87983.0,87979.0,0.06819807]
[1767268016524,0.0001463,87983.0,87980.0,0.01136621]
[1767268018120,0.0001463,87983.0,87980.0,0.07959678]
[1767268018298,3e-07,87983.0,87980.0,0.07959678]
[1767268019182,3e-07,87983.0,87982.0,0.0568298]
[1767268022450,0.0001463,87992.0,87985.0,0.01136557]
[1767268022783,0.01066383,87991.0,87985.0,0.01136557]
[1767268022974,0.07257415,87992.0,87985.0,0.01136557]
[1767268023270,0.04799342,87992.0,87986.0,0.01136544]
[1767268023496,0.000146,87986.0,87985.0,0.01136557]
[1767268023895,0.04799342,87992.0,87985.0,0.01136557]
[1767268025049,0.04799342,87992.0,87986.0,0.01136544]
[1767268025244,0.04799342,87992.0,87986.0,0.01121944]
[1767268027407,0.025758,87992.0,87987.0,0.01136531]
[1767268027618,0.025758,87992.0,87986.0,0.01121944]
[1767268029243,0.00023882,87993.0,87987.0,0.01136531]
[1767268029660,0.00023882,87993.0,87987.0,0.01007818]
[1767268029860,0.00023882,87993.0,87990.0,0.01136492]
[1767268030530,0.00023882,87993.0,87989.0,0.01136505]
[1767268030738,0.00023882,87993.0,87990.0,0.01136492]
[1767268032553,0.00023882,87993.0,87989.0,0.01136505]
[1767268033330,0.00023882,87993.0,87990.0,0.01136492]
[1767268038897,0.00023882,87993.0,87988.0,0.01136518]
[1767268039098,0.00023882,87993.0,87989.0,0.01136505]